bitfinex/quotes_BTCUSD_20240818
["timestamp","ask_amount","ask_price","bid_price","bid_amount"]
[1723958972275,0.000825,59581.0,59580.0,0.100704]
[1723958972481,0.000825,59581.0,59580.0,0.291556]
[1723958973928,0.010825,59581.0,59580.0,0.292556]
[1723958974330,0.050341,59594.0,59588.0,0.0751]
[1723958974627,0.000825,59596.0,59588.0,0.0751]
[1723958974628,0.17155454,59593.0,59588.0,0.125445]
[1723958974802,0.17155454,59593.0,59589.0,0.01405]
[1723958975006,0.22189554,59593.0,59589.0,0.01405]
[1723958975181,0.05034,59595.0,59589.0,0.01405]
[1723958975384,0.000825,59596.0,59590.0,0.059258]
[1723958975385,0.17155454,59594.0,59590.0,0.059258]
[1723958975664,0.17155454,59594.0,59591.0,0.0751]
[1723958976065,0.051164,59596.0,59590.0,0.050343]
[1723958976066,0.000825,59596.0,59593.0,0.0751]
[1723958976391,0.000825,59596.0,59593.0,0.07931146]
[1723958977412,0.05034,59594.0,59593.0,0.07931146]
[1723958977586,0.22189454,59594.0,59593.0,0.00421146]
[1723958977814,0.22524573,59594.0,59593.0,0.00421146]
[1723958978014,0.32592673,59594.0,59593.0,0.00421146]
[1723958978418,0.22524573,59594.0,59593.0,0.00421146]
[1723958978828,0.22189454,59594.0,59593.0,0.00421146]
[1723958979249,0.17655454,59594.0,59593.0,0.00521146]
[1723958979466,0.22689454,59594.0,59593.0,0.00521146]
[1723958980811,0.22689454,59594.0,59593.0,0.001]
[1723958981619,0.43160773,59594.0,59593.0,0.001]
[1723958981819,0.45460773,59594.0,59593.0,0.001]
[1723958982017,0.65528873,59594.0,59593.0,0.001]
[1723958982873,0.1007,59583.0,59580.0,0.0751]
[1723958983080,0.100699,59583.0,59582.0,0.51177509]
[1723958983283,0.151054,59581.0,59580.0,0.0751]
[1723958983707,0.151054,59581.0,59575.0,0.0654]
[1723958983708,0.050353,59579.0,59575.0,0.0654]
[1723958984082,0.050353,59579.0,59576.0,0.0190858]
[1723958984509,0.050351,59581.0,59576.0,0.0190858]
[1723958985052,0.011,59579.0,59576.0,0.0190858]
[1723958985694,0.059351,59581.0,59576.0,0.0190858]
[1723958985895,0.064351,59581.0,59576.0,0.0704408]
[1723958986105,0.17155454,59580.0,59576.0,0.0714408]
[1723958986319,0.17155454,59580.0,59577.0,0.02109408]
[1723958986647,0.009,59579.0,59577.0,0.02109408]
[1723958986850,0.009,59579.0,59578.0,0.050354]
[1723958987219,0.100683,59593.0,59578.0,0.050354]
[1723958987220,0.050349,59584.0,59578.0,0.050354]
[1723958987439,0.17155454,59583.0,59579.0,0.02375591]
[1723958987615,0.22190354,59583.0,59580.0,0.0792]
[1723958988710,0.22190354,59583.0,59580.0,0.09453109]
[1723958989115,0.23290354,59583.0,59580.0,0.09553109]
[1723958989470,0.23290354,59583.0,59580.0,0.09653109]
[1723958989471,0.23590354,59583.0,59580.0,0.09653109]
[1723958989627,0.18555454,59583.0,59580.0,0.09653109]
[1723958989839,0.18555454,59583.0,59581.0,0.0170641]
[1723958990079,0.014,59583.0,59581.0,0.0170641]
[1723958990283,0.003,59583.0,59580.0,0.0802]
[1723958990703,0.014,59583.0,59580.0,0.0812]
[1723958991273,0.014,59583.0,59580.0,0.09673099]
[1723958991630,0.011,59583.0,59580.0,0.09573099]
[1723958991836,0.014,59583.0,59580.0,0.09673099]
[1723958993888,0.06435,59583.0,59580.0,0.09673099]
[1723958994062,0.050351,59581.0,59580.0,0.002]
[1723958994847,0.050351,59581.0,59580.0,0.001]
[1723958995129,0.32260854,59581.0,59580.0,0.001]
[1723958995336,0.050355,59577.0,59576.0,0.0792]
[1723958996677,0.053355,59577.0,59576.0,0.0792]
[1723958997030,0.059355,59577.0,59576.0,0.0802]
[1723958997232,0.009,59577.0,59576.0,0.0802]
[1723959001012,0.009,59577.0,59576.0,0.001]
[1723959001864,0.009,59577.0,59576.0,0.0019075]
[1723959002072,0.33497073,59577.0,59576.0,0.0019075]
[1723959002397,0.51718073,59577.0,59576.0,0.0019075]
[1723959002544,0.68319073,59577.0,59576.0,0.0019075]
[1723959002951,0.58248073,59577.0,59576.0,0.0019075]
[1723959003332,0.57348073,59577.0,59576.0,0.0009075]
[1723959003646,0.43768073,59577.0,59576.0,0.0019075]
[1723959003828,0.23290954,59577.0,59576.0,0.0019075]
[1723959004068,0.18255454,59577.0,59576.0,0.0019075]
[1723959004348,0.22490954,59577.0,59576.0,0.0019075]
[1723959004550,0.22490954,59577.0,59576.0,0.0029075]
[1723959004784,0.23590954,59577.0,59576.0,0.0029075]
[1723959006001,0.23290954,59577.0,59576.0,0.0019075]
[1723959006578,0.24490954,59577.0,59576.0,0.0029075]
[1723959011041,0.073355,59577.0,59576.0,0.0029075]
[1723959015334,0.073355,59577.0,59576.0,0.01615415]
[1723959016358,0.023,59577.0,59576.0,0.01615415]
[1723959016806,0.02259592,59577.0,59576.0,0.01615415]
[1723959020739,0.07295092,59577.0,59576.0,0.01615415]
[1723959020941,0.07295092,59577.0,59576.0,0.0029075]
[1723959023043,0.44592546,59577.0,59576.0,0.0029075]
[1723959023243,0.84588508,59577.0,59576.0,0.0029075]
[1723959023445,0.84680029,59577.0,59576.0,0.0029075]
[1723959023656,0.94951029,59577.0,59576.0,0.0029075]
[1723959023960,1.09848664,59577.0,59576.0,0.0029075]
[1723959024119,0.94951029,59577.0,59576.0,0.0029075]
[1723959024314,0.94851029,59577.0,59576.0,0.0029075]
[1723959025318,0.93651029,59577.0,59576.0,0.0019075]
[1723959025524,0.92591437,59577.0,59576.0,0.0009075]
[1723959025722,0.93391437,59577.0,59576.0,0.0019075]
[1723959025922,0.94791437,59577.0,59576.0,0.0019075]
[1723959026322,0.93391437,59577.0,59576.0,0.0019075]
[1723959026530,0.93691437,59577.0,59576.0,0.0019075]
[1723959026732,0.95091437,59577.0,59576.0,0.0019075]
[1723959026931,0.94991437,59577.0,59576.0,0.0019075]
[1723959027195,0.95173937,59577.0,59576.0,0.0019075]
[1723959027624,1.1215773,59577.0,59576.0,0.0019075]
[1723959028459,1.1205773,59577.0,59576.0,0.0019075]
[1723959028656,1.1185773,59577.0,59576.0,0.0019075]
[1723959029204,0.94873937,59577.0,59576.0,0.0019075]
[1723959029335,1.1185129,59577.0,59576.0,0.0019075]
[1723959029533,0.95173937,59577.0,59576.0,0.0019075]
[1723959032059,0.9468048,59577.0,59576.0,0.0019075]
[1723959032262,0.9238048,59577.0,59576.0,0.0019075]
[1723959032464,0.8230948,59577.0,59576.0,0.0019075]
[1723959032678,0.87391219,59577.0,59576.0,0.0019075]
[1723959032892,0.6594948,59577.0,59576.0,0.0019075]
[1723959033099,0.5764948,59577.0,59576.0,0.0019075]
[1723959033296,0.57314361,59577.0,59576.0,0.0019075]
[1723959034096,0.47243361,59577.0,59576.0,0.0019075]
[1723959034613,0.57243361,59577.0,59576.0,0.0019075]
[1723959036477,0.47172361,59577.0,59576.0,0.0833075]
[1723959036707,0.44597873,59577.0,59576.0,0.0833075]
[1723959036929,0.34544454,59577.0,59576.0,0.0833075]
[1723959037192,0.42084408,59577.0,59576.0,0.0833075]
[1723959037893,0.24928954,59577.0,59576.0,0.0833075]
[1723959038379,0.17389,59577.0,59576.0,0.0833075]
[1723959039681,0.17389,59577.0,59576.0,0.1465075]
[1723959039823,0.022825,59577.0,59576.0,0.16115825]
[1723959040020,0.14859368,59577.0,59576.0,0.16115825]
[1723959040321,0.14859368,59577.0,59576.0,0.1465075]
[1723959041195,0.14859798,59577.0,59576.0,0.1465075]
[1723959041348,0.24930798,59577.0,59576.0,0.1465075]
[1723959041569,0.22416988,59577.0,59576.0,0.1465075]
[1723959041752,0.17389,59577.0,59576.0,0.1465075]
[1723959043946,0.07318,59577.0,59576.0,0.16115825]
[1723959044097,0.07318,59577.0,59576.0,0.1465075]
[1723959044639,0.44615454,59577.0,59576.0,0.0019075]
[1723959045608,0.49643442,59577.0,59576.0,0.0019075]
[1723959046007,0.52157252,59577.0,59576.0,0.0019075]
[1723959046649,0.49644575,59577.0,59576.0,0.0019075]
[1723959047771,0.72044411,59577.0,59576.0,0.0019075]
[1723959047936,1.03205437,59577.0,59576.0,0.0019075]
[1723959048146,1.03605437,59577.0,59576.0,0.0019075]
[1723959048577,1.20574483,59577.0,59576.0,0.0019075]
[1723959048737,1.20274483,59577.0,59576.0,0.0019075]
[1723959049302,0.96405601,59577.0,59576.0,0.0019075]
[1723959050043,1.13374647,59577.0,59576.0,0.0019075]
[1723959050223,1.06476601,59577.0,59576.0,0.0019075]
[1723959052281,0.96405601,59577.0,59576.0,0.0019075]
[1723959052909,1.13373151,59577.0,59576.0,0.0019075]
[1723959053265,1.13371573,59577.0,59576.0,0.0019075]
[1723959053659,1.13178116,59577.0,59576.0,0.0019075]
[1723959053884,0.85912144,59577.0,59576.0,0.0019075]
[1723959054888,0.79322144,59577.0,59576.0,0.0019075]
[1723959055292,0.66951144,59577.0,59576.0,0.0019075]
[1723959055670,0.76951144,59577.0,59576.0,0.0019075]
[1723959055886,1.13705601,59577.0,59576.0,5e-07]
[1723959056118,1.14105601,59577.0,59576.0,5e-07]
[1723959056554,1.3107006,59577.0,59576.0,5e-07]
[1723959056788,1.3337006,59577.0,59576.0,5e-07]
[1723959056970,1.49066316,59577.0,59576.0,5e-07]
[1723959057166,1.59137316,59577.0,59576.0,5e-07]
[1723959057366,1.32101857,59577.0,59576.0,5e-07]
[1723959057672,1.59137316,59577.0,59576.0,5e-07]
[1723959057814,1.49066316,59577.0,59576.0,5e-07]
[1723959058293,1.16005601,59577.0,59576.0,5e-07]
[1723959058499,1.16405601,59577.0,59576.0,5e-07]
[1723959059128,1.34115601,59577.0,59576.0,5e-07]
[1723959059576,1.51078055,59577.0,59576.0,5e-07]
[1723959059776,1.34115601,59577.0,59576.0,5e-07]
[1723959060396,1.32715601,59577.0,59576.0,5e-07]
[1723959061016,1.68133967,59577.0,59576.0,5e-07]
[1723959061163,1.67933967,59577.0,59576.0,5e-07]
[1723959061365,1.66833967,59577.0,59576.0,5e-07]
[1723959061770,0.60917457,59571.0,59570.0,0.0009075]
[1723959061965,0.9270117,59571.0,59570.0,0.0009075]
[1723959062573,0.92607713,59571.0,59570.0,0.0009075]
[1723959062980,0.65035713,59571.0,59570.0,0.0009075]
[1723959063341,0.66435713,59571.0,59570.0,0.0009075]
[1723959064128,0.67835713,59571.0,59570.0,0.0009075]
[1723959064664,0.70135713,59571.0,59570.0,0.0009075]
[1723959066191,0.85213352,59571.0,59570.0,0.0009075]
[1723959066642,0.85216468,59571.0,59570.0,0.0009075]
[1723959066844,0.86232819,59571.0,59570.0,0.0009075]
[1723959068140,0.95032819,59571.0,59570.0,0.0009075]
[1723959068344,0.94932819,59571.0,59570.0,0.0009075]
[1723959068543,0.95032819,59571.0,59570.0,0.0009075]
[1723959069179,1.04904819,59571.0,59570.0,0.0009075]
[1723959069379,0.96597521,59571.0,59570.0,0.0009075]
[1723959069656,1.10108294,59571.0,59570.0,0.0009075]
[1723959069901,1.10308294,59571.0,59570.0,0.0009075]
[1723959070393,1.08908294,59571.0,59570.0,0.0009075]
[1723959070603,1.10308294,59571.0,59570.0,0.0009075]
[1723959071372,0.96397521,59571.0,59570.0,0.0009075]
[1723959071852,0.96597521,59571.0,59570.0,0.0009075]
[1723959072073,0.95197521,59571.0,59570.0,0.0009075]
[1723959072448,0.96597521,59571.0,59570.0,0.0009075]
[1723959073647,0.96680021,59571.0,59570.0,0.0009075]
[1723959073851,0.96480021,59571.0,59570.0,0.0009075]
[1723959074053,0.96680021,59571.0,59570.0,0.0009075]
[1723959074228,0.96580021,59571.0,59570.0,0.0009075]
[1723959074576,0.96680021,59571.0,59570.0,0.0009075]
[1723959076899,0.97352921,59571.0,59570.0,0.0009075]
[1723959077110,0.97059464,59571.0,59570.0,0.0009075]
[1723959077720,0.81979464,59571.0,59570.0,0.0009075]
[1723959080111,0.71234564,59571.0,59570.0,0.0009075]
[1723959080457,0.8631076,59571.0,59570.0,0.0009075]
[1723959082010,0.91934614,59571.0,59570.0,0.0009075]
[1723959082212,0.91834614,59571.0,59570.0,0.0009075]
[1723959083102,0.8631076,59571.0,59570.0,0.0009075]
[1723959083506,0.81506564,59571.0,59570.0,0.0009075]
[1723959083706,0.81306564,59571.0,59570.0,0.0009075]
[1723959085132,0.89906564,59571.0,59570.0,0.0009075]
[1723959089722,0.90000021,59571.0,59570.0,0.0009075]
[1723959089947,0.92584831,59571.0,59570.0,0.0009075]
[1723959090942,0.92784831,59571.0,59570.0,0.0009075]
[1723959091157,0.92584831,59571.0,59570.0,0.0009075]
[1723959091582,0.90000021,59571.0,59570.0,0.0009075]
[1723959091780,0.90100021,59571.0,59570.0,0.0009075]
[1723959092597,0.90200021,59571.0,59570.0,0.0009075]
[1723959093633,0.90000021,59571.0,59570.0,0.0009075]
[1723959094241,0.90100021,59571.0,59570.0,0.0009075]
[1723959095603,0.90200021,59571.0,59570.0,0.0009075]
[1723959096106,0.90000021,59571.0,59570.0,0.0009075]
[1723959097952,0.98200021,59571.0,59570.0,0.0009075]
[1723959098493,0.98300021,59571.0,59570.0,0.0009075]
[1723959098692,0.98400021,59571.0,59570.0,0.0009075]
[1723959099621,0.98434381,59571.0,59570.0,0.0009075]
[1723959099983,1.13503914,59571.0,59570.0,0.0009075]
[1723959102727,1.47631554,59571.0,59570.0,0.0009075]
[1723959103390,1.47665914,59571.0,59570.0,0.0009075]
[1723959104052,0.96580021,59571.0,59570.0,0.0009075]
[1723959104396,1.29602981,59571.0,59570.0,0.0009075]
[1723959104603,1.04780021,59571.0,59570.0,0.0009075]
[1723959105666,0.58934564,59571.0,59570.0,0.0009075]
[1723959106813,0.61234564,59571.0,59570.0,0.0009075]
[1723959107018,0.71234564,59571.0,59570.0,0.0009075]
[1723959108003,0.88251616,59571.0,59570.0,0.0009075]
[1723959109367,0.86851616,59571.0,59570.0,0.0009075]
[1723959109527,0.88251616,59571.0,59570.0,0.0009075]
[1723959110446,0.69834564,59571.0,59570.0,0.0009075]
[1723959110651,0.71234564,59571.0,59570.0,0.0009075]
[1723959110995,0.68934564,59571.0,59570.0,0.0815075]
[1723959111195,0.67918213,59571.0,59570.0,0.0815075]
[1723959112831,0.57846213,59571.0,59570.0,0.0815075]
[1723959113450,0.72965846,59571.0,59570.0,0.0815075]
[1723959114534,0.57846213,59571.0,59570.0,0.0815075]
[1723959118444,0.57846213,59571.0,59570.0,0.16280465]
[1723959118445,0.37774213,59571.0,59570.0,0.16280465]
[1723959118649,0.37774213,59571.0,59570.0,0.1479639]
[1723959119816,0.37774213,59571.0,59570.0,0.1487029]
[1723959120265,0.35145954,59571.0,59570.0,0.1487029]
[1723959120470,0.47734221,59571.0,59570.0,0.1487029]
[1723959120890,0.35145954,59571.0,59570.0,0.1487029]
[1723959121826,0.35145954,59571.0,59570.0,0.16357319]
[1723959123453,0.47734012,59571.0,59570.0,0.16357319]
[1723959124194,0.37662012,59571.0,59570.0,0.16357319]
[1723959124411,0.25073954,59571.0,59570.0,0.16357319]
[1723959124609,0.028825,59571.0,59570.0,0.16357319]
[1723959124810,0.014825,59571.0,59570.0,0.16357319]
[1723959125168,0.065185,59571.0,59570.0,0.16357319]
[1723959125376,0.079185,59571.0,59570.0,0.16357319]
[1723959125583,0.065185,59571.0,59570.0,0.16357319]
[1723959126106,0.079185,59571.0,59570.0,0.16357319]
[1723959127175,0.065185,59571.0,59570.0,0.1487029]
[1723959127406,0.065185,59571.0,59570.0,0.1470465]
[1723959127532,0.065185,59571.0,59570.0,0.1480465]
[1723959127740,0.079185,59571.0,59570.0,0.1487029]
[1723959128364,0.065185,59571.0,59570.0,0.1487029]
[1723959128783,0.179905,59571.0,59570.0,0.1487029]
[1723959134043,0.179905,59571.0,59570.0,0.0033029]
[1723959134044,0.45217954,59571.0,59570.0,0.0033029]
[1723959134300,0.55280442,59571.0,59570.0,0.0026465]
[1723959135539,0.45217954,59571.0,59570.0,0.0026465]
[1723959136624,0.52763424,59571.0,59570.0,0.0033029]
[1723959137230,0.62835424,59571.0,59570.0,0.0016465]
[1723959137431,0.65352442,59571.0,59570.0,0.0016465]
[1723959137654,0.55289954,59571.0,59570.0,0.0016465]
[1723959138632,0.57918208,59571.0,59570.0,0.0016465]
[1723959141533,0.70494598,59571.0,59570.0,0.0016465]
[1723959141993,0.6798035,59571.0,59570.0,0.0016465]
[1723959143443,0.6798035,59571.0,59570.0,0.01051679]
[1723959143615,0.57918208,59571.0,59570.0,0.01051679]
[1723959144206,0.57918208,59571.0,59570.0,0.0016465]
[1723959146551,0.70497208,59571.0,59570.0,0.0016465]
[1723959147268,0.60425208,59571.0,59570.0,0.0016465]
[1723959147672,0.47846208,59571.0,59570.0,0.0016465]
[1723959148535,0.6042923,59571.0,59570.0,0.0016465]
[1723959149590,0.47846208,59571.0,59570.0,0.0016465]
[1723959153042,0.47846208,59571.0,59570.0,0.0026465]
[1723959153253,0.47846208,59571.0,59570.0,0.0016465]
[1723959153995,0.62969138,59571.0,59570.0,0.0016465]
[1723959157439,0.47846208,59571.0,59570.0,0.0016465]
[1723959161975,0.56146208,59571.0,59570.0,0.0016465]
[1723959163955,0.62556208,59571.0,59570.0,0.0016465]
[1723959168860,0.62556208,59571.0,59562.0,0.0626029]
[1723959168861,0.050366,59563.0,59562.0,0.0626029]
[1723959169070,0.34802284,59563.0,59562.0,0.08348235]
[1723959169231,0.34802284,59563.0,59562.0,0.0626029]
[1723959169436,0.24820401,59563.0,59562.0,0.0626029]
[1723959169598,0.22192054,59563.0,59562.0,0.08348598]
[1723959169976,0.2482042,59563.0,59562.0,0.0626029]
[1723959170190,0.44875271,59563.0,59562.0,0.0626029]
[1723959170368,0.32965354,59563.0,59562.0,0.0626029]
[1723959170574,0.18655454,59563.0,59560.0,0.0808]
[1723959170821,0.18655454,59563.0,59553.0,0.8629]
[1723959170822,0.49396244,59562.0,59553.0,0.8629]
[1723959171005,0.15112,59555.0,59553.0,0.8629]
[1723959171202,0.15112,59555.0,59553.0,0.7792]
[1723959171203,0.27815214,59555.0,59553.0,0.7792]
[1723959171617,0.29858668,59555.0,59549.0,1.3531]
[1723959171773,0.050377,59551.0,59550.0,0.02089976]
[1723959172384,0.10079844,59551.0,59549.0,0.1505]
[1723959172589,0.050377,59550.0,59549.0,0.1505]
[1723959173125,0.10078697,59550.0,59549.0,0.1505]
[1723959173326,0.12600916,59550.0,59549.0,0.1505]
[1723959173520,0.1007704,59550.0,59549.0,0.1505]
[1723959173893,0.10076971,59550.0,59549.0,0.1505]
[1723959174110,0.12600916,59551.0,59549.0,0.1705882]
[1723959174315,0.002,59550.0,59549.0,0.1705882]
[1723959174516,0.002,59550.0,59549.0,0.1505]
[1723959174517,0.001,59550.0,59549.0,0.1505]
[1723959174838,0.050377,59551.0,59549.0,0.1505]
[1723959175171,0.10077015,59551.0,59549.0,0.1505]
[1723959175371,0.050377,59551.0,59549.0,0.1505]
[1723959175646,0.050377,59550.0,59549.0,0.1505]
[1723959179236,0.050377,59551.0,59549.0,0.1505]
[1723959179487,0.050377,59551.0,59549.0,0.1787881]
[1723959179689,0.05039315,59553.0,59550.0,0.2307]
[1723959180064,0.10076615,59555.0,59550.0,0.2307]
[1723959180272,0.050373,59555.0,59551.0,0.0302567]
[1723959180448,0.10076415,59557.0,59555.0,0.0667]
[1723959180805,0.22192654,59556.0,59555.0,0.0667]
[1723959181086,0.22192654,59556.0,59555.0,0.08977]
[1723959181599,0.05039315,59559.0,59557.0,0.0667]
[1723959181804,0.050367,59562.0,59560.0,0.0667]
[1723959182039,0.050367,59562.0,59560.0,0.1487]
[1723959183862,0.050366,59564.0,59560.0,0.1487]
[1723959184057,0.050366,59564.0,59561.0,0.0182978]
[1723959184475,0.013,59562.0,59561.0,0.0182978]
[1723959184941,0.050366,59563.0,59561.0,0.0182978]
[1723959185717,0.009,59564.0,59561.0,0.0182978]
[1723959185718,0.059366,59564.0,59561.0,0.0182978]
[1723959186526,0.050366,59564.0,59561.0,0.0182978]
[1723959186725,0.050366,59564.0,59560.0,0.1487]
[1723959186726,0.007,59562.0,59560.0,0.1487]
[1723959187963,0.050366,59564.0,59560.0,0.1487]
[1723959188207,0.006,59562.0,59560.0,0.1885991]
[1723959188362,0.013,59562.0,59560.0,0.1885991]
[1723959189797,0.006,59562.0,59560.0,0.1885991]
[1723959190013,0.050367,59563.0,59560.0,0.1885991]
[1723959190215,0.000825,59562.0,59560.0,0.1487]
[1723959190670,0.007825,59562.0,59560.0,0.1487]
[1723959191200,0.013825,59562.0,59560.0,0.1487]
[1723959192350,0.013825,59562.0,59561.0,0.00421155]
[1723959193328,0.000825,59562.0,59561.0,0.00421155]
[1723959193548,0.013825,59562.0,59561.0,0.00421155]
[1723959193971,0.013825,59562.0,59561.0,0.07419491]
[1723959194231,0.013825,59562.0,59561.0,0.22029491]
[1723959194557,0.013825,59562.0,59561.0,0.24118593]
[1723959194782,0.013825,59562.0,59561.0,0.24318593]
[1723959195016,0.013825,59562.0,59561.0,0.44465993]
[1723959195178,0.013825,59562.0,59561.0,0.42376891]
[1723959195380,0.013825,59562.0,59561.0,0.54539149]
[1723959195584,0.013825,59562.0,59561.0,1.84980548]
[1723959195808,0.006825,59562.0,59561.0,1.85080548]
[1723959196010,0.011825,59562.0,59561.0,1.85080548]
[1723959196209,0.005825,59562.0,59561.0,1.84980548]
[1723959196536,0.000825,59562.0,59561.0,1.84980548]
[1723959196763,0.001825,59562.0,59561.0,2.02236002]
[1723959196950,0.001825,59562.0,59561.0,2.02436002]
[1723959197150,0.002825,59562.0,59561.0,2.02436002]
[1723959197575,0.002825,59562.0,59561.0,2.02136002]
[1723959198184,0.002825,59562.0,59561.0,2.02236002]
[1723959198417,0.002825,59562.0,59561.0,2.02136002]
[1723959198623,0.002825,59562.0,59561.0,2.02236002]
[1723959198824,0.002825,59562.0,59561.0,2.02136002]
[1723959199027,0.002825,59562.0,59561.0,2.02436002]
[1723959199227,0.002825,59562.0,59561.0,2.02336002]
[1723959199435,0.002825,59562.0,59561.0,1.96746045]
[1723959199638,0.002825,59562.0,59561.0,2.02335236]
[1723959199765,0.002825,59562.0,59561.0,1.96746045]
[1723959199959,0.002825,59562.0,59561.0,2.0243492]
[1723959201784,0.002825,59562.0,59561.0,2.0213492]
[1723959202283,0.002825,59562.0,59561.0,1.61231021]
[1723959202441,0.002825,59562.0,59561.0,1.79504721]
[1723959203596,0.002825,59562.0,59561.0,1.69431021]
[1723959203770,0.002825,59562.0,59561.0,1.5252908]
[1723959205410,0.002825,59562.0,59561.0,0.2558908]
[1723959206102,0.002825,59562.0,59561.0,0.1551538]
[1723959206281,0.002825,59562.0,59561.0,0.0227858]
[1723959206556,0.002825,59562.0,59561.0,0.0019075]
[1723959207133,0.001825,59562.0,59561.0,0.0009075]
[1723959207455,0.000825,59562.0,59561.0,0.0019075]
[1723959209193,0.000825,59562.0,59561.0,0.02178468]
[1723959209434,0.17237954,59562.0,59561.0,0.02178468]
[1723959209634,0.22274654,59562.0,59561.0,0.0019075]
[1723959210062,0.22274654,59562.0,59561.0,0.0009075]
[1723959210400,0.22274654,59562.0,59561.0,0.0019075]
[1723959210801,0.22274654,59562.0,59561.0,0.0009075]
[1723959211359,0.22474654,59562.0,59561.0,0.0009075]
[1723959212021,0.22474654,59562.0,59561.0,0.0663075]
[1723959212022,0.002825,59562.0,59561.0,0.0663075]
[1723959212157,0.002825,59562.0,59561.0,0.08718596]
[1723959212602,0.002825,59562.0,59561.0,0.0663075]
[1723959212803,0.002825,59562.0,59561.0,0.13755282]
[1723959213007,0.000825,59562.0,59561.0,0.13755282]
[1723959213606,0.000825,59562.0,59561.0,0.13855282]
[1723959214170,0.000825,59562.0,59561.0,0.13755282]
[1723959214379,0.000825,59562.0,59561.0,0.13855282]
[1723959215651,0.000825,59562.0,59561.0,0.15515282]
[1723959218889,0.000825,59562.0,59561.0,0.25588982]
[1723959219136,0.000825,59562.0,59561.0,0.40128982]
[1723959219868,0.000825,59562.0,59561.0,0.15515282]
[1723959220063,0.000825,59562.0,59561.0,0.10478483]
[1723959220819,0.000825,59562.0,59561.0,0.02278483]
[1723959221211,0.000825,59562.0,59561.0,0.07315283]
[1723959223228,0.000825,59562.0,59561.0,0.02278483]
[1723959223407,0.22274654,59562.0,59561.0,0.02278483]
[1723959223621,0.22274654,59562.0,59561.0,0.0019075]
[1723959224233,0.22274654,59562.0,59561.0,0.0009075]
[1723959224591,0.22374654,59562.0,59561.0,0.0009075]
[1723959226061,0.22574654,59562.0,59561.0,0.0009075]
[1723959226381,0.22474654,59562.0,59561.0,0.0009075]
[1723959226581,0.22574654,59562.0,59561.0,0.0009075]
[1723959230660,0.32648154,59562.0,59561.0,0.0009075]
[1723959230874,0.37673778,59562.0,59561.0,0.0009075]
[1723959231475,0.27600278,59562.0,59561.0,0.0009075]
[1723959232301,0.35900278,59562.0,59561.0,0.0009075]
[1723959232949,0.30874654,59562.0,59561.0,0.0009075]
[1723959233210,0.35909003,59562.0,59561.0,0.0009075]
[1723959233398,1.05845376,59562.0,59561.0,0.0009075]
[1723959233600,0.90853949,59562.0,59561.0,0.0009075]
[1723959233934,1.05956997,59562.0,59561.0,0.0009075]
[1723959234127,0.90853949,59562.0,59561.0,0.0009075]
[1723959234328,0.90753949,59562.0,59561.0,0.0009075]
[1723959234544,0.71580449,59562.0,59561.0,0.0009075]
[1723959234943,0.70180449,59562.0,59561.0,0.0009075]
[1723959236939,0.71580449,59562.0,59561.0,0.0009075]
[1723959237108,0.70180449,59562.0,59561.0,0.0009075]
[1723959237262,0.82758589,59562.0,59561.0,0.0009075]
[1723959237466,0.84158589,59562.0,59561.0,0.0009075]
[1723959238353,0.82758589,59562.0,59561.0,0.0009075]
[1723959239308,0.70180449,59562.0,59561.0,0.0009075]
[1723959240369,0.71480449,59562.0,59561.0,0.0009075]
[1723959240586,0.76395957,59562.0,59561.0,0.0009075]
[1723959241291,0.75095957,59562.0,59561.0,0.0009075]
[1723959241554,0.49492457,59562.0,59561.0,0.0009075]
[1723959241788,0.41948154,59562.0,59561.0,0.0009075]
[1723959243477,0.52021654,59562.0,59561.0,0.0009075]
[1723959243716,0.58651654,59562.0,59561.0,0.0009075]
[1723959244006,0.71880795,59562.0,59561.0,0.0009075]
[1723959244243,0.66851654,59562.0,59561.0,0.0009075]
[1723959244476,0.74396563,59562.0,59561.0,0.0009075]
[1723959245418,0.58651654,59562.0,59561.0,0.0009075]
[1723959245568,0.63681831,59562.0,59561.0,0.0009075]
[1723959246120,0.58651654,59562.0,59561.0,0.0009075]
[1723959247290,0.65996917,59562.0,59561.0,0.0009075]
[1723959247492,0.67396917,59562.0,59561.0,0.0009075]
[1723959247693,0.59851654,59562.0,59561.0,0.0009075]
[1723959248070,0.58451654,59562.0,59561.0,0.0009075]
[1723959248268,0.65996917,59562.0,59561.0,0.0009075]
[1723959248470,0.63483183,59562.0,59561.0,0.0009075]
[1723959249105,0.64583183,59562.0,59561.0,0.0009075]
[1723959250125,0.59551654,59562.0,59561.0,0.0009075]
[1723959250310,0.67099902,59562.0,59561.0,0.0009075]
[1723959250709,0.59551654,59562.0,59561.0,0.0009075]
[1723959252044,0.67100791,59562.0,59561.0,0.0009075]
[1723959252250,0.59551654,59562.0,59561.0,0.0009075]
[1723959252472,0.67101376,59562.0,59561.0,0.0009075]
[1723959253616,0.67101775,59562.0,59561.0,0.0009075]
[1723959254634,0.67101824,59562.0,59561.0,0.0009075]
[1723959257296,0.52171824,59562.0,59561.0,0.0009075]
[1723959259813,0.44621654,59562.0,59561.0,0.0009075]
[1723959260138,0.52621654,59562.0,59561.0,0.0009075]
[1723959260771,0.60174096,59562.0,59561.0,0.0009075]
[1723959261371,0.52621654,59562.0,59561.0,0.0009075]
[1723959262172,0.65317058,59562.0,59561.0,0.0009075]
[1723959263508,0.55250164,59562.0,59561.0,0.0009075]
[1723959264173,0.67841365,59562.0,59561.0,0.0009075]
[1723959265460,0.55250164,59562.0,59561.0,0.0009075]
[1723959265900,0.61600164,59562.0,59561.0,0.0009075]
[1723959266990,0.89371055,59562.0,59561.0,0.0009075]
[1723959267210,1.01671055,59562.0,59561.0,0.0009075]
[1723959267822,0.92173664,59562.0,59561.0,0.0009075]
[1723959268414,0.91073664,59562.0,59561.0,0.0009075]
[1723959268616,0.92473664,59562.0,59561.0,0.0009075]
[1723959269007,0.91373664,59562.0,59561.0,0.0009075]
[1723959270096,0.92773664,59562.0,59561.0,0.0009075]
[1723959270546,0.91373664,59562.0,59561.0,0.0009075]
[1723959271519,0.92773664,59562.0,59561.0,0.0009075]
[1723959272365,0.47776664,59562.0,59561.0,0.1484075]
[1723959272536,0.37776664,59562.0,59561.0,0.1484075]
[1723959272752,0.50372618,59562.0,59561.0,0.1484075]
[1723959272974,0.35148154,59562.0,59561.0,0.1484075]
[1723959274097,0.47744108,59562.0,59561.0,0.1484075]
[1723959274505,0.25074654,59562.0,59561.0,0.1484075]
[1723959275344,0.37670608,59562.0,59561.0,0.1484075]
[1723959275758,0.36270608,59562.0,59561.0,0.1484075]
[1723959275990,0.37370608,59562.0,59561.0,0.1484075]
[1723959276331,0.35970608,59562.0,59561.0,0.1484075]
[1723959276732,0.37370608,59562.0,59561.0,0.1484075]
[1723959277071,0.35970608,59562.0,59561.0,0.1484075]